{"text_format":"1","workbook":"xlsx","n_sheets":1,"sheets":["Лист4"],"not_rendered":{"charts":0,"images":0,"macros":0,"external_links":0,"defined_names":1,"comments":0,"pivot_tables":0},"unopened":[],"bounds":{"document_bytes":16777216,"sheet_cells":100000,"rows_first":2000,"rows_last":500,"rows_between":2000,"halvings":0,"cell_chars":16384,"cell_head_chars":4096},"cells_cut":0,"cells_raw":0,"read":"whole","date_system":"1900"}

{"sheet":"Лист4","index":0,"n_rows":25,"n_cols":12,"rows_kept":25,"cut":false,"hidden":false,"merged":[[4,0,4,11],[24,0,24,11],[1,7,1,11],[3,0,3,11],[5,0,6,0],[5,1,6,1],[5,2,6,2],[5,3,6,3],[5,4,6,4],[5,5,6,5],[5,6,5,7],[5,8,6,8],[5,9,6,9],[5,10,6,10],[5,11,6,11],[7,1,22,1]]}
[]
[null,null,null,null,null,null,null,"Budjet jarayonining ochiqligini ta’minlash maqsadida rasmiy veb-saytlarda ma’lumotlarni joylashtirish tartibi to‘g‘risidagi nizomga \n4-ILOVA"]
[]
["2025-yil 1-aprel xolatiga Navoiy viloyat adliya boshqarmasi tomonidan asosiy vositalar xarid qilish uchun o‘tkazilgan tanlovlar (tendyerlar) va amalga oshirilgan davlat xaridlari to‘g‘risidagi"]
["MA’LUMOTLAR"]
["T/r","Hisobot davri","Xarid qilingan tovarlar va xizmatlar nomi","Moliyalashtirish manbasi*","Xarid jarayonini amalga oshirish turi","Lot/shartnoma raqami","Pudratchi to‘g‘risida ma’lumotlar",null,"Xarid qilinayotgan tovarlar (xizmatlar) o‘lchov birligi (imkoniyat darajasida)","Xarid qilinayotgan tovarlar (xizmatlar) miqdori (hajmi)","Bitim (shartnoma) bo‘yicha tovarlar (xizmatlar) bir birligi narxi (tarifi)","Xarid qilingan tovarlar (xizmatlar) jami miqdori (hajmi) qiymati \n(ming so‘m)\n"]
[null,null,null,null,null,null,"Pudratchi nomi","Korxona STIRi"]
[1,"1-chorak","Quyosh elektro stansiyasi","budjetdan tashqari","Elektron do`kon","№4154331.1.1 Lot252010084154331","Хайдарбек Парвинабона Х.К.",301176928,"komp",1,42000000,{"$f":"+K8*J8","v":42000000}]
[{"$f":"+A8+1","v":2},null,"Quyosh elektro stansiyasi","budjetdan tashqari","Elektron do`kon","№4154474.1.1 Lot252010084154474","Хайдарбек Парвинабона Х.К.",301176928,"komp",1,125000000,{"$f":"+K9*J9","v":125000000}]
[{"$f":"+A9+1","v":3},null,"Quyosh elektro stansiyasi","budjetdan tashqari","Elektron do`kon","№4168627.1.1 Lot252010084168627","JMH STROY MCHJ",311578889,"komp",1,88000000,{"$f":"+K10*J10","v":88000000}]
[4,null,"Quyosh elektro stansiyasi","budjetdan tashqari","Elektron do`kon","№B1074002 Lot25311008018040","DIMAX LIST Хусусий корхонаси",306066428,"komp",1,44900000,{"$f":"+K11*J11","v":44900000}]
[5,null,"Quyosh elektro stansiyasi","budjetdan tashqari","Elektron do`kon","№B1074119 Lot25311008018391","DIMAX LIST Хусусий корхонаси",306066428,"komp",1,48000000,{"$f":"+K12*J12","v":48000000}]
[6,null,"Terminal raspoznaniya lis","budjetdan tashqari","Elektron do`kon","№3007064 Lot251110083558723","YTT KENJAYEV JO?RABEK TO?RAYEVICH","30703903110041.","dona",9,3225000,{"$f":"+K13*J13","v":29025000}]
[7,null,"Quyosh elektro stansiyasi","budjetdan tashqari","Elektron do`kon","№B1065702 Lot25311008004907","DIMAX LIST Хусусий корхонаси",306066428,"komp",1,24900000,24900000]
[8,null,"Turniket","budjetdan tashqari","Elektron do`kon","№2938377 Lot251110083476596","YTT VAFOQULOVA FOTIMA BATIROVNA","43103910241347.","komp",1,22557000,22557000]
[9,null,"Info kiyosk","budjetdan tashqari","Elektron do`kon","№2963284 Lot251110083503584","GREENCITY XK",305760056,"komp",4,4798000,19192000]
[10,null,"Generator peremennovo toka","budjetdan tashqari","Elektron do`kon","№2990942 Lot251110083538033","YTT AXMEDOV NOSIRJON TOXIRJON O?G?LI","30804985890040.","komp",8,19300000,154400000]
[11,null,"Barmoq izi skaneri","budjetdan tashqari","Elektron do`kon","№2991382 Lot251110083538621","YTT ABDULLAYEV ALISHER ABDULLAYEVICH","30502786850020.","dona",1,1200000,1200000]
[12,null,"Barmoq izi skaneri","budjetdan tashqari","Elektron do`kon","№2994482 Lot251110083542538","YTT ABDULLAYEV ALISHER ABDULLAYEVICH","30502786850020.","dona",14,1110000,{"$f":"+K19*J19","v":15540000}]
[13,null,"Kamera","budjetdan tashqari","Elektron do`kon","№2994754 Lot251110083542842","YTT ABDULLAYEV ALISHER ABDULLAYEVICH","30502786850020.","dona",16,685000,{"$f":"+K20*J20","v":10960000}]
[14,null,"Kamera","budjetdan tashqari","Elektron do`kon","№3024343 Lot251110083578240","ООО SYSADMIN UNIV TECHNO SER",305457130,"dona",16,704000,{"$f":"+K21*J21","v":11264000}]
[15,null,"Printer","budjetdan tashqari","Elektron do`kon","№3091678 Lot251110083657815","YTT SHAROPOVA ZULXUMOR G?AYRATOVNA","41905652550033.","dona",5,4375333,{"$f":"+K22*J22","v":21876665}]
[16,null,"Monoblok","budjetdan tashqari","Elektron do`kon","№3096385 Lot251110083663430","Мунавар нур барака ХК",301376361,"dona",5,6000000,{"$f":"+K23*J23","v":30000000}]
[]
["* Izoh: Moliyalashtirish manbasi aniq ko‘rsatiladi. Moliyalashtirish manbalari: O‘zbekiston Respublikasining Davlat budjeti, Davlat maqsadli jamg‘arma mablag‘lari, O‘zbekiston Respublikasi Davlat budjeti tarkibidagi budjetlarning qo‘shimcha manbalari, budjet tashkilotlarining budjetdan tashqari jamg‘armalari mablag‘lari"]